bitfinex-derivatives/quotes_ETHF0:USTF0_20251119
["timestamp","ask_amount","ask_price","bid_price","bid_amount"]
[1763547181672,0.43655681,3101.9,3101.8,0.95071]
[1763547181973,0.00375681,3101.9,3101.8,0.95071]
[1763547183880,0.803,3103.7,3101.7,0.00360829]
[1763547183881,0.9134,3103.0,3102.9,0.3851]
[1763547184076,0.391,3103.0,3102.9,0.90752]
[1763547184976,0.39433931,3103.0,3102.9,0.90752]
[1763547185280,0.91345,3102.7,3102.6,0.52247]
[1763547185988,0.52252,3102.4,3102.3,0.52251]
[1763547186283,0.91352,3102.4,3102.3,0.52251]
[1763547186674,0.52255,3102.2,3102.1,0.52254]
[1763547186885,0.91355,3102.2,3102.1,0.52254]
[1763547188075,0.391,3102.2,3102.1,0.90764]
[1763547188270,0.91354,3102.2,3102.1,0.90764]
[1763547188676,0.91354,3102.2,3102.1,0.52254]
[1763547189388,0.52258,3102.1,3102.0,0.52257]
[1763547189577,0.91358,3102.1,3102.0,0.52257]
[1763547189777,3.2078,3102.3,3101.7,0.00360829]
[1763547189778,0.391,3101.8,3101.7,0.00360829]
[1763547189976,0.91359,3101.9,3101.8,0.90771]
[1763547190380,0.91359,3101.9,3101.8,0.52261]
[1763547190883,0.391,3101.9,3101.8,0.90771]
[1763547191088,0.91359,3101.9,3101.8,0.90771]
[1763547191583,3.5988,3102.3,3102.2,0.90764]
[1763547191784,3.5988,3102.3,3102.2,0.52254]
[1763547191985,0.75928,3102.0,3101.9,0.52258]
[1763547192285,1.15028,3102.0,3101.9,0.52258]
[1763547192685,0.91358,3102.0,3101.9,0.90768]
[1763547192877,3.2078,3102.3,3102.1,0.90765]
[1763547192878,0.91354,3102.2,3102.1,0.90765]
[1763547193281,3.2078,3102.3,3102.2,0.90764]
[1763547193480,3.5988,3102.3,3102.2,0.90764]
[1763547193691,4.12132,3102.3,3102.2,0.52254]
[1763547194686,4.12132,3102.3,3101.7,0.00360829]
[1763547194687,3.2078,3102.3,3101.7,0.00360829]
[1763547194889,0.391,3101.8,3101.7,0.91132829]
[1763547195188,4.1214,3101.8,3101.7,0.38870829]
[1763547195379,4.1214,3101.8,3101.7,0.00360829]
[1763547196777,4.1214,3101.8,3101.7,0.52622829]
[1763547197182,4.1214,3101.8,3101.7,0.91132829]
[1763547197390,3.5988,3101.8,3101.7,0.91132829]
[1763547197588,3.2078,3101.8,3101.7,0.91132829]
[1763547197788,4.12141,3101.8,3101.7,0.91132829]
[1763547199595,3.5988,3101.8,3101.7,0.91132829]
[1763547199997,3.2078,3101.8,3101.7,0.91132829]
[1763547200684,3.73034,3102.2,3102.1,0.52255]
[1763547200992,4.12134,3102.2,3102.1,0.90765]
[1763547201383,4.12134,3102.2,3102.1,0.52255]
[1763547201693,0.9136,3101.8,3101.7,0.52622829]
[1763547203393,0.9136,3101.8,3101.7,0.00360829]
[1763547203598,4.1214,3101.8,3101.7,0.00360829]
[1763547205796,4.1214,3101.8,3101.7,8.29e-06]
[1763547218501,0.89131,3101.2,3101.1,3.845]
[1763547218700,0.3686,3100.8,3100.7,7.0528]
[1763547218897,0.3686,3100.8,3100.7,7.415]
[1763547219400,0.3686,3100.8,3100.7,4.72999]
[1763547219599,0.37142869,3100.8,3100.7,4.73253696]
[1763547220396,0.37142869,3100.8,3100.7,0.88753696]
[1763547220595,0.89419869,3100.8,3100.7,0.00254696]
[1763547221594,4.10199869,3100.8,3100.7,0.52533696]
[1763547222200,4.10199869,3100.8,3100.7,0.00254696]
[1763547223800,4.10199869,3100.8,3100.7,0.52533696]
[1763547224196,4.10199869,3100.8,3100.7,0.00254696]
[1763547224901,5.22207667,3100.8,3100.7,0.00254696]
[1763547225104,4.10199869,3100.8,3100.7,0.00254696]
[1763547225692,0.52289,3100.1,3100.0,0.2233]
[1763547225996,0.3686,3100.1,3100.0,1.08991]
[1763547226195,0.52289,3100.2,3100.1,0.88509]
[1763547226802,0.52289,3100.2,3100.1,0.88858187]
[1763547227210,0.89149,3100.2,3100.1,0.88858187]
[1763547227399,0.52289,3100.2,3100.1,0.88858187]
[1763547227600,0.52286,3100.3,3100.2,0.88504]
[1763547228202,0.89144,3100.4,3100.3,0.52284]
[1763547228406,0.89144,3100.4,3100.3,0.88504]
[1763547229900,0.89144,3100.4,3100.3,0.52284]
[1763547230208,0.89144,3100.4,3100.3,0.88504]
[1763547230808,3.57922869,3100.8,3100.7,0.3622]
[1763547231505,0.89141,3100.7,3100.6,0.52281]
[1763547231710,0.52281,3100.7,3100.6,0.88501]
[1763547231917,4.85348667,3100.8,3100.7,0.52279]
[1763547232209,4.10200869,3100.8,3100.7,0.88499]
[1763547232903,4.10200869,3100.8,3100.7,0.52279]
[1763547233111,5.22208667,3100.8,3100.7,0.52279]
[1763547233704,5.22208667,3100.8,3100.7,0.88499]
[1763547238014,3.21062869,3100.8,3100.7,0.88499]
[1763547238606,0.00282869,3100.8,3100.7,0.88499]
[1763547239309,0.00282869,3100.8,3100.7,3.2078]
[1763547239310,0.89420869,3100.8,3100.7,3.2078]
[1763547239610,0.3686,3100.7,3100.6,0.3622]
[1763547239805,0.89420869,3100.8,3100.7,0.88499]
[1763547240211,0.37142869,3100.8,3100.7,0.88499]
[1763547240411,0.00282869,3100.8,3100.7,0.88499]
[1763547241317,0.89420869,3100.8,3100.7,0.88499]
[1763547241609,0.3266,3100.3,3100.2,5.18006859]
[1763547241917,0.84943,3100.5,3100.4,0.84834]
[1763547242720,0.84943,3100.5,3100.4,0.3255]
[1763547243012,0.3266,3100.3,3100.2,3.5333]
[1763547243414,0.3266,3100.3,3100.2,3.2078]
[1763547243808,0.84946,3100.3,3100.2,4.05617]
[1763547244310,0.84946,3100.3,3100.2,3.5333]
[1763547244506,0.84947,3100.2,3100.1,0.52637187]
[1763547245420,0.84947,3100.2,3100.1,0.85187187]
[1763547245618,0.84947,3100.2,3100.1,0.52637187]
[1763547246119,0.52286,3100.3,3100.2,0.84836]
[1763547246312,0.84946,3100.3,3100.2,0.84836]
[1763547248617,0.52286,3100.3,3100.2,0.84836]
[1763547249529,0.00282869,3100.8,3100.7,0.3255]
[1763547249921,0.85221869,3100.8,3100.7,0.3255]
[1763547250830,0.85221869,3100.8,3100.7,0.84829]
[1763547251719,0.84944,3100.5,3100.4,0.52283]
[1763547251921,1.97228667,3100.8,3100.7,0.84829]
[1763547252124,1.64568667,3100.8,3100.7,0.84829]
[1763547252526,1.97228667,3100.8,3100.7,0.84829]
[1763547253330,0.84934,3101.0,3100.9,0.84825]
[1763547253719,0.84934,3101.0,3100.9,0.3255]
[1763547253920,0.52279,3100.8,3100.7,0.84829]
[1763547254120,0.84939,3100.8,3100.7,0.84829]
[1763547254320,0.85221507,3100.8,3100.7,0.84829]
[1763547254729,0.52561507,3100.8,3100.7,0.84829]
[1763547255031,0.85221507,3100.8,3100.7,0.84829]
[1763547255427,1.97229305,3100.8,3100.7,0.52279]
[1763547255726,1.97229305,3100.8,3100.7,0.84829]
[1763547257334,0.84939,3100.7,3100.6,3.845]
[1763547257526,0.84939,3100.7,3100.6,4.1705]
[1763547257828,4.05719,3100.7,3100.6,4.1705]
[1763547258031,4.05719,3100.7,3100.6,3.845]
[1763547258224,1.04463,3100.5,3100.4,0.00483442]
[1763547258533,2.16470798,3100.5,3100.4,0.00483442]
[1763547260233,2.16310798,3100.5,3100.4,0.00483442]
[1763547265234,0.2934,3099.7,3099.6,0.83948]
[1763547266040,0.2934,3099.7,3099.6,0.84327839]
[1763547266226,0.81636,3099.7,3099.6,0.00379839]
[1763547266736,0.81636,3099.7,3099.6,0.84326839]
[1763547266926,0.52296,3099.7,3099.6,0.84326839]
[1763547267126,0.81636,3099.7,3099.6,0.00379839]
[1763547267327,0.81636,3099.7,3099.6,0.52676839]
[1763547267526,0.81636,3099.7,3099.6,0.84326839]
[1763547267932,0.81636,3099.7,3099.6,0.32029839]
[1763547268736,0.81636,3099.7,3099.6,0.84326839]
[1763547269335,0.52296,3099.7,3099.6,0.84326839]
[1763547269534,0.1952,3100.5,3099.6,0.84326839]
[1763547269535,0.52289,3100.1,3100.0,0.70029]
[1763547269833,0.81632,3100.0,3099.9,0.83942]
[1763547270029,1.93639798,3100.0,3099.9,0.83942]
[1763547270736,1.12007798,3100.0,3099.9,0.83942]
[1763547271036,0.52289,3100.1,3100.0,1.01681]
[1763547271224,0.00282507,3100.8,3099.7,3.2078]
[1763547271426,0.00483442,3101.1,3101.0,0.52274]
[1763547271625,0.00483442,3101.1,3101.0,3.73054]
[1763547272335,0.00847837,3101.1,3101.0,3.73054]
[1763547272724,0.31167837,3101.1,3101.0,3.73054]
[1763547273338,0.83440837,3101.1,3101.0,3.2078]
[1763547273535,0.83440837,3101.1,3101.0,3.73054]
[1763547274326,0.83440837,3101.1,3100.3,1.12389859]
[1763547274327,0.3032,3100.4,3100.3,1.12389859]
[1763547274532,0.69273,3100.5,3100.0,3.2078]
[1763547274533,0.3032,3100.2,3100.0,3.2078]
[1763547275137,2.11600798,3100.5,3100.4,0.52284]
[1763547275433,0.1699,3100.5,3100.4,0.52284]
[1763547275740,0.1699,3100.5,3100.4,3.73064]
[1763547278536,0.1699,3101.0,3100.9,0.52276]
[1763547282438,0.00847837,3101.1,3101.0,0.52274]
[1763547286341,0.00847837,3101.1,3101.0,4.36774]
[1763547286745,0.31167837,3101.1,3101.0,4.36774]
[1763547288052,0.83440837,3101.1,3101.0,4.36774]
[1763547289145,0.83440837,3101.1,3101.0,3.845]
[1763547289951,0.82598,3100.8,3100.7,0.52279]
[1763547291755,0.52282,3100.7,3100.6,0.52281]
[1763547292052,0.82602,3100.7,3100.6,0.52281]
[1763547292750,0.99593,3100.5,3100.4,3.2078]
[1763547293050,0.3032,3100.3,3100.2,0.52286]
[1763547293250,0.52289,3100.1,3100.0,3.7307]
[1763547293448,3.2078,3100.4,3099.6,1.12769698]
[1763547293449,0.52294,3099.9,3099.8,0.52293]
[1763547293648,0.82614,3099.9,3099.8,0.52293]
[1763547295666,0.3032,3099.9,3099.8,0.52293]
[1763547295856,0.1699,3100.0,3099.9,0.52293]
[1763547296255,0.99601,3100.0,3099.9,0.52293]
[1763547297463,0.1699,3100.0,3099.9,0.52293]
[1763547297958,0.4731,3100.0,3099.9,0.52293]
[1763547298148,0.1699,3100.0,3099.9,0.52293]
[1763547299958,0.1699,3100.5,3100.4,0.52284]
[1763547300155,0.4731,3100.5,3100.4,0.52284]
[1763547300460,0.1699,3100.5,3100.4,0.52284]
[1763547300760,0.4731,3100.5,3100.4,0.52284]
[1763547301154,0.4731,3100.5,3100.1,3.2078]
[1763547301155,0.52287,3100.4,3100.3,0.52286]
[1763547301355,0.69281,3100.0,3099.9,1.64682859]
[1763547301556,0.99601,3100.0,3099.9,0.52293]
[1763547302656,0.84754,3099.8,3099.7,3.73075]
[1763547303166,1.01742,3100.0,3099.7,3.2078]
[1763547303346,0.84754,3099.8,3099.7,3.73075]
[1763547303751,0.84756,3099.7,3099.6,0.00379839]
[1763547305862,0.84756,3099.7,3099.6,0.52677839]
[1763547306357,0.4945,3100.0,3099.9,0.52293]
[1763547306658,0.69281,3100.0,3099.9,0.52293]
[1763547306864,1.01741,3100.0,3099.9,0.52293]
[1763547307259,0.4945,3100.0,3099.9,0.52293]
[1763547308055,1.01741,3100.0,3099.9,0.52293]
[1763547309459,0.1699,3100.0,3099.7,7.0528]
[1763547309761,0.84754,3099.8,3099.7,7.0528]
[1763547309962,0.84754,3099.8,3099.7,3.2078]
[1763547311558,0.3246,3099.8,3099.7,3.73076]
[1763547311764,0.4945,3100.0,3099.9,0.52293]
[1763547312066,0.1699,3100.0,3099.9,0.52293]
[1763547313671,0.4945,3100.0,3099.9,0.52293]
[1763547314274,0.1699,3100.0,3099.9,0.52293]
[1763547314970,0.4945,3100.0,3099.9,0.52293]
[1763547315370,1.01741,3100.0,3099.9,0.52293]
[1763547316068,0.84754,3099.9,3099.8,0.52294]
[1763547316464,0.84754,3099.9,3099.7,3.2078]
[1763547316465,0.84754,3099.8,3099.7,3.2078]
[1763547317773,0.84754,3099.8,3099.7,3.73076]
[1763547318375,0.84754,3099.8,3099.7,3.2078]
[1763547318876,0.84754,3099.8,3099.7,3.73076]
[1763547319774,0.84754,3099.8,3099.7,3.2078]
[1763547320170,0.84756,3099.7,3099.6,0.00379839]
[1763547321371,0.52295,3099.8,3099.7,0.52294]
[1763547321671,0.84754,3099.8,3099.7,0.52294]
[1763547321882,0.3246,3099.8,3099.7,0.52294]
[1763547322174,0.1699,3100.0,3099.9,0.52293]
[1763547322574,0.1699,3100.0,3099.9,1.64682859]
[1763547322769,0.1699,3100.5,3100.4,0.52284]
[1763547325473,0.00847837,3101.1,3100.3,1.13623796]
[1763547325784,0.00847837,3101.1,3100.5,4.34403796]
[1763547326385,0.00847837,3101.1,3100.9,0.52276]
[1763547326881,0.513,3101.0,3100.9,0.52276]
[1763547327678,0.1699,3101.0,3100.9,0.52276]
[1763547328280,0.513,3101.0,3100.9,0.52276]
[1763547328780,0.1699,3101.0,3100.9,0.52276]
[1763547329373,0.00847837,3101.1,3101.0,0.52274]
[1763547330286,0.00847837,3101.1,3100.9,0.52274]
[1763547330287,0.5485,3101.0,3100.9,0.52274]
[1763547330476,0.3431,3100.7,3100.5,4.34403796]
[1763547330682,1.07124,3101.0,3100.9,0.52276]
[1763547330884,0.5485,3101.0,3100.9,0.52276]
[1763547331082,1.07124,3101.0,3100.9,0.52276]
[1763547331383,0.3431,3100.9,3100.8,0.52277]
[1763547331585,0.86586,3100.9,3100.8,0.52277]
[1763547333687,0.3431,3100.6,3100.5,3.2078]
[1763547334780,0.86591,3100.6,3100.5,3.73062]
[1763547335384,0.5145,3101.0,3100.9,0.52276]
[1763547335692,0.3091,3100.9,3100.8,0.52277]
[1763547336694,0.2054,3101.0,3100.9,0.52276]
[1763547336893,0.2054,3101.0,3100.9,3.73056]
[1763547337096,0.5145,3101.0,3100.9,3.2078]
[1763547337385,0.5145,3101.0,3100.9,3.73056]
[1763547337584,0.2054,3101.0,3100.9,3.73056]
[1763547338693,0.00847837,3101.1,3101.0,0.52274]
[1763547340190,0.1973,3102.0,3101.4,0.52267]
[1763547340191,0.5226,3101.9,3101.4,0.52267]
[1763547340393,3.4051,3102.0,3101.4,0.52267]
[1763547340996,0.52259,3101.9,3101.4,0.52267]
[1763547341191,0.17523905,3101.5,3101.4,0.52267]
[1763547342092,0.48433905,3101.5,3101.4,0.52267]
[1763547342285,0.17523905,3101.5,3101.4,0.52267]
[1763547343798,0.48433905,3101.5,3101.4,0.52267]
[1763547345693,0.17523905,3101.5,3101.4,0.52267]
[1763547347290,0.48433905,3101.5,3101.4,0.52267]
[1763547348207,0.17523905,3101.5,3101.4,0.52267]
[1763547348502,0.17523905,3101.5,3101.4,4.36767]
[1763547348704,0.48433905,3101.5,3101.4,4.36767]
[1763547349500,0.3091,3101.2,3101.1,0.00483442]
[1763547349705,0.83181,3101.2,3101.1,0.00483442]
[1763547351905,0.83181,3101.2,3101.1,0.52756442]
[1763547353306,0.3091,3101.2,3101.1,0.52756442]
[1763547353807,0.69789905,3101.5,3101.4,0.52267]
[1763547354006,0.17523905,3101.5,3101.4,0.52267]
[1763547354400,1.00699905,3101.5,3101.4,0.52267]
[1763547355500,0.48433905,3101.5,3101.4,0.52267]
[1763547356100,1.00699905,3101.5,3101.4,0.52267]
[1763547359211,0.48433905,3101.5,3101.4,0.52267]
[1763547360108,0.17523905,3101.5,3101.4,0.52267]
[1763547360506,0.48433905,3101.5,3101.4,0.52267]
[1763547360911,1.00699905,3101.5,3101.4,0.52267]
[1763547362607,0.99719905,3101.5,3101.4,0.52267]
[1763547362920,0.47453905,3101.5,3101.4,0.52267]
[1763547363104,0.99719905,3101.5,3101.4,0.52267]
[1763547365308,0.82201,3101.3,3101.2,0.5227]
[1763547366712,0.2993,3101.3,3101.2,0.5227]
[1763547366910,0.47453905,3101.5,3101.4,0.52267]
[1763547367707,0.17523905,3101.5,3101.4,0.52267]
[1763547371610,0.17523905,3101.5,3101.4,1.65890796]
[1763547371812,0.47453905,3101.5,3101.4,1.65890796]
[1763547372410,0.17523905,3101.5,3101.4,1.65890796]
[1763547373813,0.00393905,3101.5,3101.4,0.52267]
[1763547374215,0.17213905,3101.5,3101.4,4.36767]
[1763547374422,0.00393905,3101.5,3101.4,4.36767]
[1763547376023,0.00483442,3101.8,3101.7,0.52262]
[1763547376318,0.00483442,3101.8,3101.7,8.7121951]
[1763547376922,0.00771105,3101.8,3101.7,8.7121951]
[1763547377124,0.00771105,3101.8,3101.7,7.57542]
[1763547381326,3.2078,3102.6,3101.7,7.0528]
[1763547381527,0.1947,3103.0,3102.9,0.52242]
[1763547381725,0.1947,3103.0,3102.9,3.73022]
[1763547382122,0.1947,3103.0,3102.9,4.86500929]
[1763547382422,0.19746595,3103.0,3102.9,4.86882899]
[1763547383230,0.1574,3103.0,3102.9,3.7340397]
[1763547383428,0.4326,3103.0,3102.9,3.7340397]
[1763547383924,0.1574,3103.0,3102.9,3.7340397]
[1763547384131,0.16088086,3103.0,3102.9,3.7340397]
[1763547384728,0.00483442,3103.3,3103.2,0.52237]
[1763547385432,0.1682,3104.0,3103.9,0.52225]
[1763547385635,0.17152856,3104.0,3103.9,0.52225]
[1763547385932,0.44672856,3104.0,3103.9,0.52225]
[1763547387226,0.00483442,3104.3,3104.2,0.5222]
[1763547387527,0.4326,3105.0,3104.9,0.52209]
[1763547387728,0.1574,3105.0,3104.9,0.52209]
[1763547388347,0.16055001,3105.0,3104.9,0.52209]
[1763547389432,0.43575001,3105.0,3104.9,0.52209]
[1763547390824,0.16055001,3105.0,3104.6,3.21263442]
[1763547391128,0.2752,3104.7,3104.6,3.73477442]
[1763547391336,0.79732,3104.7,3104.6,3.73477442]
[1763547391529,0.79732,3104.7,3104.6,3.21263442]
[1763547391734,0.1731,3103.5,3103.2,3.2078]
[1763547391928,0.4377,3103.5,3103.4,0.52234]
[1763547393237,0.00483442,3103.8,3103.7,0.52229]
[1763547393539,0.52241,3103.2,3103.1,0.00483442]
[1763547393834,0.00483442,3103.8,3102.9,0.5262897]
[1763547393835,0.4377,3103.0,3102.9,0.5262897]
[1763547394028,0.96015,3103.0,3102.9,0.0038197]
[1763547394438,0.96015,3103.0,3102.9,0.5262897]
[1763547394635,0.96015,3103.0,3102.9,0.0038197]
[1763547395336,4.16795,3103.0,3102.9,0.0038197]
[1763547399645,4.16795,3103.0,3102.9,0.5262897]
[1763547400242,4.16795,3103.0,3102.9,0.0038197]
[1763547401241,3.3809,3103.0,3102.9,0.5262897]
[1763547401745,4.16795,3103.0,3102.9,0.0038197]
[1763547404945,0.4377,3102.0,3101.4,3.2078]
[1763547405137,0.4377,3102.0,3101.9,0.52264]
[1763547405845,0.44112044,3102.0,3101.9,0.52512398]
[1763547406445,0.96374044,3102.0,3101.9,0.00248398]
[1763547408752,0.96374044,3102.0,3101.9,0.52512398]
[1763547409347,0.44112044,3102.0,3101.9,0.52512398]
[1763547409549,0.17652044,3102.0,3101.9,0.52512398]
[1763547410159,0.44112044,3102.0,3101.9,0.52512398]
[1763547410651,0.96374044,3102.0,3101.9,0.00248398]
[1763547412560,0.69914044,3102.0,3101.9,0.00248398]
[1763547412751,0.96374044,3102.0,3101.9,0.00248398]
[1763547413351,0.44112044,3102.0,3101.9,0.52512398]
[1763547413552,0.17652044,3102.0,3101.9,0.52512398]
[1763547413955,0.00342044,3102.0,3101.9,0.52512398]
[1763547414156,0.17652044,3102.0,3101.9,0.52512398]
[1763547414356,0.44112044,3102.0,3101.9,0.52512398]
[1763547414860,0.17652044,3102.0,3101.9,0.52512398]
[1763547415050,0.44112044,3102.0,3101.9,0.52512398]
[1763547416357,0.17652044,3102.0,3101.9,0.52512398]
[1763547416964,0.00342044,3102.0,3101.9,0.52512398]
[1763547417256,0.00483442,3102.3,3102.2,0.52259]
[1763547417664,0.00483442,3102.3,3102.2,3.73039]
[1763547418357,0.27349449,3102.3,3102.2,3.73039]
[1763547418857,0.00889449,3102.3,3102.2,3.73039]
[1763547421754,0.1731,3102.5,3102.4,0.52255]
[1763547422259,0.4133,3102.5,3102.4,0.52255]
[1763547422764,0.41584091,3102.5,3102.4,0.52255]
[1763547423369,0.17564091,3102.5,3102.4,0.52255]
[1763547425167,0.41584091,3102.5,3102.4,0.52255]
[1763547425864,0.93838091,3102.5,3102.4,0.52255]
[1763547426662,0.76277,3102.3,3102.2,3.73038]
[1763547428067,0.3889,3102.0,3101.9,0.52512398]
[1763547428766,0.91152,3102.0,3101.9,0.52512398]
[1763547429576,0.3889,3102.0,3101.9,0.52512398]
[1763547430357,0.1487,3102.0,3101.9,0.52512398]
[1763547430863,3.21263442,3102.8,3101.9,6.00248398]
[1763547431066,0.52233,3103.8,3103.4,0.52238]
[1763547431369,0.2402,3103.3,3103.2,3.73022]
[1763547431964,0.2435501,3103.3,3103.2,3.73022]
[1763547432866,0.2435501,3103.3,3103.2,4.62662]
[1763547433571,0.2435501,3103.3,3103.2,5.78582]
[1763547435275,0.7659501,3103.3,3103.2,4.62662]
[1763547435774,0.7659501,3103.3,3103.2,3.73022]
[1763547436574,0.2435501,3103.3,3103.2,3.73022]
[1763547437974,0.7659501,3103.3,3103.2,0.52242]
[1763547438169,0.52245,3103.1,3103.0,0.52244]
[1763547438363,0.91135,3103.0,3102.9,1.2579]
[1763547438774,0.3889,3103.0,3102.9,1.78037]
[1763547438971,0.91135,3103.0,3102.9,0.52247]
[1763547439772,0.1487,3103.0,3102.9,0.52247]
[1763547440476,0.0033501,3103.3,3102.8,3.2078]
[1763547440477,0.0033501,3103.3,3103.2,0.52242]
[1763547440777,0.0033501,3103.3,3103.2,3.73022]
[1763547441271,4.42e-06,3103.6,3103.5,0.52237]
[1763547441479,0.1487,3104.5,3104.4,0.52222]
[1763547442380,0.15168636,3104.5,3104.4,0.52558791]
[1763547445478,0.91408636,3104.5,3104.4,0.52558791]
[1763547445781,0.91408636,3104.5,3104.4,0.00336791]
[1763547446865,0.91408636,3104.5,3104.2,3.2078]
[1763547446866,0.81063,3104.3,3104.2,3.2078]
[1763547447482,0.81065,3104.2,3104.1,0.52710442]
[1763547447875,0.81065,3104.2,3104.1,0.53074157]
[1763547448874,0.81065,3104.2,3104.1,0.00847157]
[1763547449874,0.81065,3104.2,3104.1,0.53074157]
[1763547450582,0.2884,3104.2,3104.1,0.53074157]
[1763547450786,0.96229636,3104.5,3104.4,0.52222]
[1763547451478,0.44008636,3104.5,3104.4,0.52222]
[1763547451669,0.15168636,3104.5,3104.4,0.52222]
[1763547451874,0.81773,3104.4,3104.3,0.52223]
[1763547452081,0.81773,3104.4,3104.1,0.00847157]
[1763547452082,0.81775,3104.2,3104.1,0.53073157]
[1763547452781,0.2955,3103.9,3103.8,3.73012]
[1763547453984,0.8178,3103.9,3103.8,3.7323848]
[1763547454485,0.2955,3103.9,3103.8,3.7323848]
[1763547454781,0.1824,3104.0,3103.9,0.5223]
[1763547455180,0.15168636,3104.5,3104.4,0.52222]
[1763547456787,0.96938636,3104.5,3104.4,0.52222]
[1763547457086,0.2955,3104.2,3104.1,0.52225]
[1763547457681,0.81775,3104.2,3104.1,0.52225]
[1763547458079,0.2955,3103.9,3103.8,3.2100648]
[1763547458888,0.1824,3104.0,3103.9,0.5223]
[1763547459586,0.4779,3104.0,3103.9,0.5223]
[1763547459984,0.1824,3104.0,3103.9,0.5223]
[1763547460383,1.00018,3104.0,3103.9,0.5223]
[1763547460589,0.4779,3104.0,3103.9,0.5223]
[1763547460780,1.00018,3104.0,3103.9,0.5223]
[1763547461384,0.4779,3104.0,3103.9,0.5223]
[1763547462192,0.1824,3104.0,3103.9,0.5223]
[1763547463489,1.00018,3104.0,3103.9,0.5223]
[1763547463895,0.4779,3104.0,3103.9,0.5223]
[1763547465101,0.4779,3104.0,3103.8,3.2100648]
[1763547465102,0.96938636,3104.5,3104.4,0.52222]
[1763547465397,0.2955,3103.9,3103.8,3.7323848]
[1763547465992,0.8178,3103.9,3103.8,3.2100648]
[1763547466593,0.1824,3104.0,3103.8,3.2100648]
[1763547466594,1.00019,3104.0,3103.9,0.5223]
[1763547466786,0.4779,3104.0,3103.9,0.5223]
[1763547466993,0.1824,3104.0,3103.9,0.5223]
[1763547467497,0.4779,3104.0,3103.9,0.5223]
[1763547469002,1.00018,3104.0,3103.9,0.5223]
[1763547472308,0.4779,3104.0,3103.9,0.5223]
[1763547472496,1.00018,3104.0,3103.9,0.5223]
[1763547472699,0.8178,3103.9,3103.8,3.7323848]
[1763547473718,0.8178,3103.9,3103.8,0.5245848]
[1763547475011,0.2955,3103.9,3103.8,0.5245848]
[1763547478014,0.1824,3104.0,3103.9,0.5223]
[1763547478210,0.15168636,3104.5,3104.4,0.52222]
[1763547479313,0.52223,3104.3,3104.2,1.65966315]
[1763547479518,0.2955,3104.3,3104.2,0.52225]
[1763547480227,0.81773,3104.3,3104.2,0.52225]
[1763547480621,0.2955,3104.3,3104.2,0.52225]
[1763547480920,0.81773,3104.3,3104.2,0.52225]
[1763547481121,0.2955,3104.3,3104.2,0.52225]
[1763547481718,0.4445,3104.0,3103.9,0.9973]
[1763547482115,0.4445,3104.0,3103.8,1.13967795]
[1763547482428,0.277,3103.9,3103.8,1.66199795]
[1763547483524,0.1675,3104.0,3103.9,0.5223]
[1763547483823,0.15168636,3104.5,3104.4,0.52222]
[1763547485033,0.04176143,3104.5,3104.4,0.52222]
[1763547485328,0.1675,3104.5,3104.4,0.52222]
[1763547486122,0.17080088,3104.5,3104.4,0.52222]
[1763547487731,0.00330088,3104.5,3104.4,3.73002]
[1763547487938,0.00330088,3104.5,3104.4,4.86625041]
[1763547489430,0.00330088,3104.5,3104.4,3.73002]
[1763547491432,0.00483442,3104.8,3104.7,0.52217]
[1763547492533,3.3753,3105.5,3105.4,0.52205]
[1763547492728,3.37920214,3105.5,3105.4,0.52205]
[1763547493633,3.37920214,3105.5,3105.1,0.00483442]
[1763547493634,0.277,3105.2,3105.1,0.00483442]
[1763547493834,0.79908,3105.2,3105.1,0.00483442]
[1763547495036,0.79908,3105.2,3105.1,0.52693442]
[1763547495434,0.79908,3105.2,3105.1,0.00483442]
[1763547496837,0.6897,3104.5,3104.3,3.73003]
[1763547497043,0.79922,3104.4,3104.3,3.2078]
[1763547497843,0.79925,3104.2,3104.1,1.0618]
[1763547498037,0.68971,3104.5,3104.4,0.52222]
[1763547498238,0.96671,3104.5,3104.4,0.52222]
[1763547499044,0.79927,3104.1,3104.0,0.00483442]
[1763547501746,0.79927,3104.1,3104.0,0.52711442]
[1763547501935,0.277,3104.1,3104.0,0.52711442]
[1763547502136,3.4848,3104.3,3104.2,0.79765]
[1763547503841,4.00703,3104.3,3104.2,0.2754]
[1763547504048,4.00703,3104.3,3104.2,0.52225]
[1763547504750,3.4848,3104.3,3104.2,0.81375]
[1763547504949,0.80007,3104.1,3104.0,0.52711442]
[1763547505646,3.2078,3104.3,3104.2,0.52225]
[1763547505841,3.2078,3104.3,3104.1,0.2915]
[1763547506050,3.2078,3104.3,3104.0,0.52711442]
[1763547506051,0.80007,3104.1,3104.0,0.52711442]
[1763547506448,0.80007,3104.1,3104.0,0.00483442]
[1763547506944,0.80015,3103.8,3103.7,1.2202]
[1763547507143,4.00795,3103.8,3103.7,1.2202]
[1763547507343,4.00795,3103.8,3103.3,0.52243]
[1763547507344,0.2778,3103.4,3103.3,0.52243]
[1763547507544,3.4856,3103.4,3103.3,0.52243]
[1763547507743,3.4856,3103.4,3103.3,0.52549934]
[1763547508744,4.00804,3103.4,3103.3,0.52549934]
[1763547508944,4.00804,3103.4,3103.3,0.00306934]
[1763547509646,0.80035,3102.7,3102.6,0.52255]
[1763547509948,0.80037,3102.6,3102.5,0.52257]
[1763547510550,0.80361187,3102.6,3102.5,0.52646365]
[1763547511248,0.80361187,3102.6,3102.5,0.00389365]
[1763547513247,0.79961,3102.3,3102.2,1.05923442]
[1763547513451,4.00741,3102.3,3102.2,1.05923442]
[1763547513659,4.00741,3102.3,3102.2,4.49e-06]
[1763547514158,4.00741,3102.3,3102.2,0.00317627]
[1763547514551,4.00741,3102.3,3102.2,0.00317178]
[1763547514952,4.00741,3102.3,3101.5,0.1772]
[1763547514953,0.52274,3101.6,3101.5,0.1772]
[1763547515358,0.52274,3101.6,3101.5,0.69996]
[1763547515556,0.52279,3101.3,3101.2,3.7306]
[1763547515751,0.5228,3101.3,3101.2,0.5228]
[1763547516053,0.5228,3101.3,3101.2,0.52673987]